[Event "FIDE Women World Blitz 2021"]
[Site "Warsaw"]
[Date "2021.12.29"]
[Round "8.23"]
[White "Salimova, Nurgyul"]
[Black "Dworakowska, Joanna"]
[Result "1-0"]
[ECO "D00"]
[WhiteElo "2353"]
[BlackElo "2228"]
[Annotator "NA"]
[PlyCount "51"]
[EventDate "2021.12.29"]
[EventType "swiss"]
[EventCountry "POL"]
[Tiebreak "Cut1 Buchholz"]
[SourceTitle "playchess.com"]
[Source "ChessBase"]
[SourceQuality "1"]
[TimeControl "180+2"]

1. d4 {[%emt 0:00:01]} d5 {[%emt 0:00:01]} 2. Nc3 {[%emt 0:00:01]} Bf5 {
[%emt 0:00:14]} 3. Bf4 {[%emt 0:00:09]} c6 {[%emt 0:00:05]} 4. f3 {[%emt 0:00:
21]} Nf6 {[%emt 0:00:24]} 5. g4 {[%emt 0:00:07]} Bg6 {[%emt 0:00:01]} 6. h4 {
[%emt 0:00:02]} h5 {[%emt 0:00:04]} 7. g5 {[%emt 0:00:03]} Nfd7 {[%emt 0:00:02]
} 8. e3 {[%emt 0:00:05]} e6 {[%emt 0:00:48]} 9. Bd3 {[%emt 0:00:01]} Bxd3 {
[%emt 0:00:09]} 10. Qxd3 {[%emt 0:00:04]} a6 {[%emt 0:00:22]} 11. Nge2 {
[%emt 0:00:13]} c5 {[%emt 0:00:05]} 12. g6 {[%emt 0:01:13]} f6 {[%emt 0:00:01]}
13. e4 {[%emt 0:00:20]} dxe4 {[%emt 0:00:16]} 14. Qxe4 {[%emt 0:00:08]} Qb6 {
[%emt 0:00:06]} 15. Nd5 {[%emt 0:00:16]} Qa5+ {[%emt 0:00:15]} 16. b4 {[%emt 0:
00:03]} cxb4 {[%emt 0:00:03]} 17. Qxe6+ {[%emt 0:00:02]} Kd8 {[%emt 0:00:00]}
18. Bc7+ {[%emt 0:00:04]} Qxc7 {[%emt 0:00:02]} 19. Nxc7 {[%emt 0:00:02]} Kxc7
{[%emt 0:00:01]} 20. d5 {[%emt 0:00:09]} a5 {[%emt 0:00:21]} 21. d6+ {[%emt 0:
00:12]} Bxd6 {[%emt 0:00:03]} 22. O-O-O {[%emt 0:00:04]} Ra6 {[%emt 0:00:03]}
23. Qf7 {[%emt 0:00:01]} Nc6 {[%emt 0:00:13]} 24. Rxd6 {[%emt 0:00:03]} Kxd6 {
[%emt 0:00:06]} 25. Rd1+ {[%emt 0:00:01]} Kc5 {[%emt 0:00:02]} 26. Qxd7 {
[%emt 0:00:02]} 1-0

[Event "FIDE Women World Blitz 2021"]
[Site "Warsaw"]
[Date "2021.12.29"]
[Round "8.24"]
[White "Kiolbasa, Oliwia"]
[Black "Badelka, Olga"]
[Result "1-0"]
[ECO "C79"]
[WhiteElo "2403"]
[BlackElo "2188"]
[Annotator "NA"]
[PlyCount "63"]
[EventDate "2021.12.29"]
[EventType "swiss"]
[EventCountry "POL"]
[Tiebreak "Cut1 Buchholz"]
[SourceTitle "playchess.com"]
[Source "ChessBase"]
[SourceQuality "1"]
[TimeControl "180+2"]

1. e4 {[%emt 0:00:01]} e5 {[%emt 0:00:01]} 2. Nf3 {[%emt 0:00:01]} Nc6 3. Bb5 {
[%emt 0:00:02]} Nf6 {[%emt 0:00:01]} 4. d3 {[%emt 0:00:01]} d6 {[%emt 0:00:02]}
5. O-O {[%emt 0:00:07]} a6 {[%emt 0:00:00]} 6. Ba4 {[%emt 0:00:05]} b5 {
[%emt 0:00:02]} 7. Bb3 {[%emt 0:00:01]} Na5 {[%emt 0:00:01]} 8. Nbd2 {[%emt 0:
00:15]} Be7 {[%emt 0:00:05]} 9. c3 {[%emt 0:00:10]} Nxb3 {[%emt 0:00:03]} 10.
Nxb3 {[%emt 0:00:02]} O-O {[%emt 0:00:04]} 11. a4 {[%emt 0:00:02]} bxa4 {
[%emt 0:00:23]} 12. Rxa4 {[%emt 0:00:05]} Bg4 {[%emt 0:00:02]} 13. h3 {[%emt 0:
00:03]} Bh5 {[%emt 0:00:01]} 14. Na5 {[%emt 0:00:19]} Qd7 {[%emt 0:00:08]} 15.
Ra1 {[%emt 0:00:02]} Qb5 {[%emt 0:00:26]} 16. Re1 {[%emt 0:00:26]} Ne8 {
[%emt 0:00:19]} 17. Nc4 {[%emt 0:00:11]} f6 {[%emt 0:00:48]} 18. Ra5 {[%emt 0:
00:16]} Qb7 {[%emt 0:00:08]} 19. Ne3 {[%emt 0:00:03]} c6 {[%emt 0:00:03]} 20.
Nf5 {[%emt 0:00:11]} Bg6 {[%emt 0:00:10]} 21. Nxe7+ {[%emt 0:00:13]} Qxe7 {
[%emt 0:00:01]} 22. Qb3+ {[%emt 0:00:02]} Kh8 {[%emt 0:00:08]} 23. Qb6 {
[%emt 0:00:06]} Nc7 {[%emt 0:00:22]} 24. Qxc6 {[%emt 0:00:16]} f5 {[%emt 0:00:
01]} 25. Bg5 {[%emt 0:00:10]} Qf7 {[%emt 0:00:01]} 26. Qxd6 {[%emt 0:00:05]}
fxe4 {[%emt 0:00:03]} 27. dxe4 {[%emt 0:00:04]} Ne6 {[%emt 0:00:08]} 28. Bh4 {
[%emt 0:00:14]} Nf4 {[%emt 0:00:14]} 29. Nxe5 {[%emt 0:00:05]} Qb3 {[%emt 0:00:
01]} 30. Bg3 {[%emt 0:00:08]} Qxb2 {[%emt 0:00:08]} 31. Bxf4 {[%emt 0:00:06]}
Rxf4 {[%emt 0:00:01]} 32. Nxg6+ {[%emt 0:00:01]} 1-0

[Event "FIDE Women World Blitz 2021"]
[Site "Warsaw"]
[Date "2021.12.29"]
[Round "8.25"]
[White "Batsiashvili, Nino"]
[Black "Efroimski, Marsel"]
[Result "0-1"]
[ECO "A30"]
[WhiteElo "2491"]
[BlackElo "2419"]
[Annotator "ChessBase"]
[PlyCount "44"]
[EventDate "2021.12.29"]
[EventType "swiss"]
[EventCountry "POL"]
[Tiebreak "Cut1 Buchholz"]
[SourceTitle "playchess.com"]
[Source "ChessBase"]
[SourceQuality "1"]
[TimeControl "180+2"]

1. c4 {[%emt 0:00:01]} b6 {[%emt 0:00:00]} 2. Nf3 {[%emt 0:00:11]} Bb7 {
[%emt 0:00:02]} 3. g3 {[%emt 0:00:01]} c5 {[%emt 0:00:09]} 4. Bg2 {[%emt 0:00:
02]} Nc6 {[%emt 0:00:04]} 5. O-O {[%emt 0:00:11]} g6 {[%emt 0:00:14]} 6. d4 {
[%emt 0:00:12]} cxd4 {[%emt 0:00:02]} 7. Nxd4 {[%emt 0:00:01]} Bg7 {[%emt 0:00:
01]} 8. Nf3 {[%emt 0:00:27]} Rc8 {[%emt 0:00:38]} 9. Nc3 {[%emt 0:00:02]} Na5 {
[%emt 0:00:05]} 10. e4 {[%emt 0:00:27]} Nxc4 {[%emt 0:00:02]} 11. Re1 {[%emt 0:
00:10]} Nf6 {[%emt 0:00:31]} 12. Nd4 {[%emt 0:00:05]} d6 {[%emt 0:00:34]} 13.
e5 {[%emt 0:00:27]} dxe5 {[%emt 0:00:14]} 14. Bxb7 {[%emt 0:00:00]} exd4 {
[%emt 0:00:03]} 15. Bxc8 {[%emt 0:00:02]} Qxc8 {[%emt 0:00:02]} 16. Qxd4 {
[%emt 0:00:09]} O-O {[%emt 0:00:09]} 17. Qh4 {[%emt 0:00:07]} h5 {[%emt 0:00:
06]} 18. Rb1 {[%emt 0:00:08]} Ng4 {[%emt 0:00:05]} 19. Nd5 {[%emt 0:00:17]} Qc5
{[%emt 0:00:02]} 20. Be3 {[%emt 0:00:11]} Qxd5 {[%emt 0:00:02]} 21. Qxe7 {
[%emt 0:00:06]} Ncxe3 {[%emt 0:00:02]} 22. fxe3 {[%emt 0:00:01]} Qd2 {[%emt 0:
00:01]} 0-1

[Event "FIDE Women World Blitz 2021"]
[Site "Warsaw"]
[Date "2021.12.29"]
[Round "8.26"]
[White "Padmini, Rout"]
[Black "Hryzlova, Sofiia"]
[Result "0-1"]
[ECO "D77"]
[WhiteElo "2353"]
[BlackElo "2097"]
[Annotator "NA"]
[PlyCount "78"]
[EventDate "2021.12.29"]
[EventType "swiss"]
[EventCountry "POL"]
[Tiebreak "Cut1 Buchholz"]
[SourceTitle "playchess.com"]
[Source "ChessBase"]
[SourceQuality "1"]
[TimeControl "180+2"]

1. Nf3 {[%emt 0:00:02]} Nf6 {[%emt 0:00:02]} 2. g3 {[%emt 0:00:01]} g6 {
[%emt 0:00:01]} 3. Bg2 {[%emt 0:00:01]} Bg7 {[%emt 0:00:02]} 4. O-O {[%emt 0:
00:02]} O-O {[%emt 0:00:02]} 5. d4 {[%emt 0:00:01]} d5 {[%emt 0:00:08]} 6. c4 {
[%emt 0:00:02]} dxc4 {[%emt 0:00:08]} 7. Na3 {[%emt 0:00:01]} a6 {[%emt 0:00:
15]} 8. Nxc4 {[%emt 0:00:07]} c6 {[%emt 0:00:26]} 9. Bd2 {[%emt 0:00:12]} Nbd7
{[%emt 0:00:08]} 10. Nfe5 {[%emt 0:00:06]} a5 {[%emt 0:00:22]} 11. Qe1 {
[%emt 0:00:10]} a4 {[%emt 0:00:09]} 12. Ba5 {[%emt 0:00:11]} Qe8 {[%emt 0:00:
32]} 13. Rc1 {[%emt 0:00:07]} Ra6 {[%emt 0:00:17]} 14. a3 {[%emt 0:00:09]} b5 {
[%emt 0:00:17]} 15. Ne3 {[%emt 0:00:23]} Nxe5 {[%emt 0:00:22]} 16. dxe5 {
[%emt 0:00:02]} Nd5 {[%emt 0:00:01]} 17. Nxd5 {[%emt 0:00:37]} cxd5 {[%emt 0:
00:02]} 18. Bc3 {[%emt 0:00:24]} Be6 {[%emt 0:00:05]} 19. Bd4 {[%emt 0:00:02]}
Qb8 {[%emt 0:00:03]} 20. f4 {[%emt 0:00:09]} Rc8 {[%emt 0:00:02]} 21. Qb4 {
[%emt 0:00:02]} Rac6 {[%emt 0:00:08]} 22. Rxc6 {[%emt 0:00:03]} Rxc6 {[%emt 0:
00:01]} 23. Qxe7 {[%emt 0:00:02]} Rc2 {[%emt 0:00:03]} 24. Bf3 {[%emt 0:00:11]}
Bf8 {[%emt 0:00:02]} 25. Qh4 {[%emt 0:00:08]} Qc7 {[%emt 0:00:02]} 26. g4 {
[%emt 0:00:09]} Qc4 {[%emt 0:00:02]} 27. Qf2 {[%emt 0:00:04]} b4 {[%emt 0:00:
02]} 28. axb4 {[%emt 0:00:03]} Bxb4 {[%emt 0:00:02]} 29. Kg2 {[%emt 0:00:12]}
Rd2 {[%emt 0:00:02]} 30. Be3 {[%emt 0:00:04]} Rxb2 {[%emt 0:00:02]} 31. Qh4 {
[%emt 0:00:04]} d4 {[%emt 0:00:02]} 32. Qd8+ {[%emt 0:00:03]} Bf8 {[%emt 0:00:
01]} 33. Qxd4 {[%emt 0:00:03]} a3 {[%emt 0:00:05]} 34. Qxc4 {[%emt 0:00:09]}
Bxc4 {[%emt 0:00:01]} 35. Bd4 {[%emt 0:00:01]} Rc2 {[%emt 0:00:02]} 36. Kf2 {
[%emt 0:00:02]} a2 {[%emt 0:00:02]} 37. Ke3 {[%emt 0:00:02]} Ba3 {[%emt 0:00:
03]} 38. Ra1 {[%emt 0:00:04]} Bc1+ {[%emt 0:00:02]} 39. Kf2 {[%emt 0:00:03]}
Bxf4 {[%emt 0:00:02]} 0-1

[Event "FIDE Women World Blitz 2021"]
[Site "Warsaw"]
[Date "2021.12.29"]
[Round "8.27"]
[White "Kovanova, Baira"]
[Black "Girya, Olga"]
[Result "1/2-1/2"]
[ECO "C50"]
[WhiteElo "2331"]
[BlackElo "2402"]
[Annotator "NA"]
[PlyCount "74"]
[EventDate "2021.12.29"]
[EventType "swiss"]
[EventCountry "POL"]
[Tiebreak "Cut1 Buchholz"]
[SourceTitle "playchess.com"]
[Source "ChessBase"]
[SourceQuality "1"]
[TimeControl "180+2"]

1. e4 {[%emt 0:00:01]} e5 {[%emt 0:00:00]} 2. Nf3 {[%emt 0:00:01]} Nc6 {
[%emt 0:00:01]} 3. Bc4 {[%emt 0:00:01]} Bc5 {[%emt 0:00:02]} 4. d3 {[%emt 0:00:
01]} Nf6 {[%emt 0:00:01]} 5. Nbd2 {[%emt 0:00:02]} d6 {[%emt 0:00:04]} 6. h3 {
[%emt 0:00:02]} a5 {[%emt 0:00:06]} 7. c3 {[%emt 0:00:24]} Be6 {[%emt 0:00:18]}
8. O-O {[%emt 0:00:25]} O-O {[%emt 0:00:04]} 9. Re1 {[%emt 0:00:09]} Bxc4 {
[%emt 0:00:21]} 10. Nxc4 {[%emt 0:00:02]} a4 {[%emt 0:00:07]} 11. Be3 {[%emt 0:
00:22]} Bxe3 {[%emt 0:00:25]} 12. Nxe3 {[%emt 0:00:01]} Ne7 {[%emt 0:00:01]}
13. Nh4 {[%emt 0:00:15]} d5 {[%emt 0:00:06]} 14. Nhf5 {[%emt 0:00:09]} Nxf5 {
[%emt 0:00:07]} 15. Nxf5 {[%emt 0:00:01]} dxe4 {[%emt 0:00:03]} 16. dxe4 {
[%emt 0:00:01]} Qxd1 {[%emt 0:00:04]} 17. Raxd1 {[%emt 0:00:02]} Rfd8 {[%emt 0:
00:02]} 18. f3 {[%emt 0:00:07]} g6 {[%emt 0:00:14]} 19. Ne3 {[%emt 0:00:01]} b5
{[%emt 0:00:12]} 20. a3 {[%emt 0:00:08]} Kf8 {[%emt 0:00:04]} 21. Kf2 {[%emt 0:
00:04]} c6 {[%emt 0:00:03]} 22. Ng4 {[%emt 0:00:12]} Nxg4+ {[%emt 0:00:07]} 23.
hxg4 {[%emt 0:00:02]} Ke7 {[%emt 0:00:21]} 24. Ke3 {[%emt 0:00:04]} Rh8 {
[%emt 0:00:12]} 25. g5 {[%emt 0:00:14]} h6 {[%emt 0:00:08]} 26. gxh6 Rxh6 {
[%emt 0:00:00]} 27. Rd2 {[%emt 0:00:03]} Rd8 {[%emt 0:00:05]} 28. Red1 {
[%emt 0:00:03]} Rxd2 {[%emt 0:00:04]} 29. Rxd2 {[%emt 0:00:01]} Rh1 {[%emt 0:
00:01]} 30. c4 {[%emt 0:00:18]} Re1+ {[%emt 0:00:11]} 31. Kd3 {[%emt 0:00:04]}
Rc1 {[%emt 0:00:15]} 32. cxb5 {[%emt 0:00:01]} cxb5 {[%emt 0:00:00]} 33. Rc2 {
[%emt 0:00:12]} Rxc2 {[%emt 0:00:10]} 34. Kxc2 {[%emt 0:00:02]} Kd6 {[%emt 0:
00:00]} 35. b4 {[%emt 0:00:14]} Kc6 {[%emt 0:00:06]} 36. Kd3 {[%emt 0:00:02]}
Kd6 {[%emt 0:00:01]} 37. Ke3 {[%emt 0:00:02]} Ke6 {[%emt 0:00:02]} 1/2-1/2

[Event "FIDE Women World Blitz 2021"]
[Site "Warsaw"]
[Date "2021.12.29"]
[Round "8.28"]
[White "Garifullina, Leya"]
[Black "Zawadzka, Jolanta"]
[Result "1-0"]
[ECO "B51"]
[WhiteElo "2416"]
[BlackElo "2429"]
[Annotator "NA"]
[PlyCount "55"]
[EventDate "2021.12.29"]
[EventType "swiss"]
[EventCountry "POL"]
[Tiebreak "Cut1 Buchholz"]
[SourceTitle "playchess.com"]
[Source "ChessBase"]
[SourceQuality "1"]
[TimeControl "180+2"]

1. e4 {[%emt 0:00:01]} c5 {[%emt 0:00:01]} 2. Nf3 {[%emt 0:00:01]} Nc6 {
[%emt 0:00:01]} 3. Bb5 {[%emt 0:00:02]} d6 {[%emt 0:00:01]} 4. O-O {[%emt 0:00:
03]} Nf6 {[%emt 0:00:05]} 5. Re1 {[%emt 0:00:02]} Bd7 {[%emt 0:00:01]} 6. c3 {
[%emt 0:00:01]} a6 {[%emt 0:00:01]} 7. Bf1 {[%emt 0:00:02]} Bg4 {[%emt 0:00:03]
} 8. d4 {[%emt 0:00:01]} Bxf3 {[%emt 0:00:05]} 9. gxf3 {[%emt 0:00:02]} cxd4 {
[%emt 0:00:02]} 10. cxd4 {[%emt 0:00:01]} e5 {[%emt 0:00:02]} 11. d5 {[%emt 0:
00:03]} Ne7 {[%emt 0:00:04]} 12. Nd2 {[%emt 0:00:10]} Ng6 {[%emt 0:00:04]} 13.
Nc4 {[%emt 0:00:24]} Nh5 {[%emt 0:00:21]} 14. Be3 {[%emt 0:00:54]} b5 {[%emt 0:
00:37]} 15. Nb6 {[%emt 0:00:31]} Rb8 {[%emt 0:00:03]} 16. a4 {[%emt 0:00:01]}
Rxb6 {[%emt 0:00:30]} 17. Bxb6 {[%emt 0:00:16]} Qxb6 {[%emt 0:00:02]} 18. axb5
{[%emt 0:00:01]} Be7 {[%emt 0:00:07]} 19. bxa6 {[%emt 0:00:18]} O-O {[%emt 0:
00:09]} 20. a7 {[%emt 0:00:00]} Ra8 {[%emt 0:00:09]} 21. Qa4 {[%emt 0:00:02]}
Bh4 {[%emt 0:00:35]} 22. Re2 {[%emt 0:00:15]} Nhf4 {[%emt 0:00:02]} 23. Rc2 {
[%emt 0:00:04]} Qd8 {[%emt 0:00:08]} 24. Qc6 {[%emt 0:00:01]} Nf8 {[%emt 0:00:
20]} 25. Ra6 {[%emt 0:00:26]} h6 {[%emt 0:00:13]} 26. Qb7 {[%emt 0:00:02]} Qg5+
{[%emt 0:00:02]} 27. Kh1 {[%emt 0:00:01]} Qh5 {[%emt 0:00:02]} 28. Ra3 {
[%emt 0:00:03]} 1-0

[Event "FIDE Women World Blitz 2021"]
[Site "Warsaw"]
[Date "2021.12.29"]
[Round "8.29"]
[White "Garcia Martin, Marta"]
[Black "Serikbay, Assel"]
[Result "1-0"]
[ECO "B30"]
[WhiteElo "2194"]
[BlackElo "2237"]
[Annotator "NA"]
[PlyCount "101"]
[EventDate "2021.12.29"]
[EventType "swiss"]
[EventCountry "POL"]
[Tiebreak "Cut1 Buchholz"]
[SourceTitle "playchess.com"]
[Source "ChessBase"]
[SourceQuality "1"]
[TimeControl "180+2"]

1. e4 {[%emt 0:00:01]} c5 {[%emt 0:00:02]} 2. Nc3 {[%emt 0:00:01]} e6 {[%emt 0:
00:01]} 3. Nf3 {[%emt 0:00:11]} Nc6 {[%emt 0:00:01]} 4. Bb5 {[%emt 0:00:02]}
Nge7 {[%emt 0:00:05]} 5. d4 {[%emt 0:00:03]} cxd4 6. Nxd4 {[%emt 0:00:01]} a6 {
[%emt 0:00:02]} 7. Be2 {[%emt 0:00:23]} Nxd4 8. Qxd4 {[%emt 0:00:01]} Nc6 {
[%emt 0:00:15]} 9. Qd3 {[%emt 0:00:01]} Be7 {[%emt 0:00:05]} 10. Bf4 {[%emt 0:
00:03]} d6 {[%emt 0:00:16]} 11. O-O-O {[%emt 0:00:11]} e5 {[%emt 0:00:02]} 12.
Be3 {[%emt 0:00:03]} Be6 {[%emt 0:00:15]} 13. Nd5 {[%emt 0:00:01]} Bxd5 {
[%emt 0:00:13]} 14. Qxd5 {[%emt 0:00:09]} O-O {[%emt 0:00:15]} 15. Kb1 {
[%emt 0:00:01]} Rc8 {[%emt 0:00:11]} 16. Bg4 {[%emt 0:00:19]} Rb8 {[%emt 0:00:
40]} 17. g3 {[%emt 0:00:09]} Qc7 {[%emt 0:00:04]} 18. h4 {[%emt 0:00:09]} Nb4 {
[%emt 0:00:02]} 19. Qb3 {[%emt 0:00:02]} a5 {[%emt 0:00:00]} 20. c3 {[%emt 0:
00:08]} Na6 {[%emt 0:00:05]} 21. a4 {[%emt 0:00:20]} Nc5 {[%emt 0:00:16]} 22.
Qc4 {[%emt 0:00:00]} Qc6 {[%emt 0:00:14]} 23. Bxc5 {[%emt 0:00:05]} dxc5 {
[%emt 0:00:01]} 24. Bd7 {[%emt 0:00:12]} Qc7 {[%emt 0:00:04]} 25. Rd5 {[%emt 0:
00:05]} Rfd8 {[%emt 0:00:03]} 26. Rhd1 {[%emt 0:00:01]} b6 {[%emt 0:00:15]} 27.
h5 {[%emt 0:00:18]} Rb7 {[%emt 0:00:03]} 28. Bc6 {[%emt 0:00:17]} Rbb8 {
[%emt 0:00:11]} 29. Bd7 {[%emt 0:00:13]} Rb7 {[%emt 0:00:01]} 30. Bb5 {[%emt 0:
00:12]} Rbb8 {[%emt 0:00:01]} 31. Rd7 {[%emt 0:00:02]} Qc8 {[%emt 0:00:09]} 32.
Kc2 {[%emt 0:00:10]} Rxd7 {[%emt 0:00:04]} 33. Rxd7 {[%emt 0:00:01]} Qf8 {
[%emt 0:00:02]} 34. h6 {[%emt 0:00:07]} g6 {[%emt 0:00:02]} 35. Qd5 {[%emt 0:
00:04]} Rd8 {[%emt 0:00:01]} 36. Qxe5 {[%emt 0:00:04]} Rxd7 37. Bxd7 {[%emt 0:
00:01]} Bd6 {[%emt 0:00:03]} 38. Qf6 {[%emt 0:00:02]} Be7 {[%emt 0:00:04]} 39.
Qf4 {[%emt 0:00:01]} f6 {[%emt 0:00:04]} 40. Be6+ {[%emt 0:00:01]} Kh8 {
[%emt 0:00:01]} 41. e5 {[%emt 0:00:02]} fxe5 {[%emt 0:00:03]} 42. Qxe5+ {
[%emt 0:00:01]} Qf6 {[%emt 0:00:00]} 43. Qb8+ {[%emt 0:00:04]} Qf8 {[%emt 0:00:
01]} 44. Qe5+ {[%emt 0:00:02]} Qf6 {[%emt 0:00:01]} 45. Qe3 {[%emt 0:00:01]}
Bf8 {[%emt 0:00:04]} 46. Bc4 {[%emt 0:00:04]} g5 {[%emt 0:00:04]} 47. Bd3 {
[%emt 0:00:03]} Bxh6 {[%emt 0:00:01]} 48. Qe8+ {[%emt 0:00:01]} Qf8 {[%emt 0:
00:01]} 49. Qe5+ {[%emt 0:00:01]} Qg7 {[%emt 0:00:03]} 50. Qf5 {[%emt 0:00:04]}
Qf8 {[%emt 0:00:03]} 51. Qxh7# {[%emt 0:00:05]} 1-0

[Event "FIDE Women World Blitz 2021"]
[Site "Warsaw"]
[Date "2021.12.29"]
[Round "8.30"]
[White "Semenova, Elena"]
[Black "Michna, Marta"]
[Result "0-1"]
[ECO "C15"]
[WhiteElo "2233"]
[BlackElo "2312"]
[Annotator "NA"]
[PlyCount "82"]
[EventDate "2021.12.29"]
[EventType "swiss"]
[EventCountry "POL"]
[Tiebreak "Cut1 Buchholz"]
[SourceTitle "playchess.com"]
[Source "ChessBase"]
[SourceQuality "1"]
[TimeControl "180+2"]

1. e4 {[%emt 0:00:01]} e6 {[%emt 0:00:01]} 2. d4 {[%emt 0:00:01]} d5 {[%emt 0:
00:00]} 3. Nc3 {[%emt 0:00:01]} Bb4 {[%emt 0:00:02]} 4. Nge2 {[%emt 0:00:00]}
Nf6 {[%emt 0:00:02]} 5. e5 {[%emt 0:00:15]} Nfd7 {[%emt 0:00:02]} 6. a3 {
[%emt 0:00:00]} Be7 {[%emt 0:00:03]} 7. f4 {[%emt 0:00:24]} c5 {[%emt 0:00:04]}
8. Be3 {[%emt 0:00:02]} Nc6 {[%emt 0:00:09]} 9. dxc5 {[%emt 0:00:04]} Nxc5 {
[%emt 0:00:07]} 10. Nd4 {[%emt 0:00:01]} Bd7 {[%emt 0:00:08]} 11. Be2 {[%emt 0:
00:02]} a6 {[%emt 0:00:11]} 12. O-O {[%emt 0:00:03]} Rc8 {[%emt 0:00:13]} 13.
Nxc6 {[%emt 0:00:37]} Bxc6 {[%emt 0:00:34]} 14. f5 {[%emt 0:00:38]} exf5 {
[%emt 0:00:04]} 15. Rxf5 {[%emt 0:00:03]} Ne6 {[%emt 0:00:07]} 16. Bd2 {
[%emt 0:00:53]} d4 {[%emt 0:00:12]} 17. Na2 {[%emt 0:00:06]} Be4 {[%emt 0:00:
04]} 18. Rf1 {[%emt 0:00:05]} Bxc2 {[%emt 0:00:03]} 19. Qe1 {[%emt 0:00:00]}
Bg6 {[%emt 0:00:04]} 20. Nb4 {[%emt 0:00:02]} d3 {[%emt 0:00:07]} 21. Bf3 {
[%emt 0:00:03]} a5 {[%emt 0:00:01]} 22. Nd5 {[%emt 0:00:01]} b6 {[%emt 0:00:12]
} 23. Rc1 {[%emt 0:00:04]} Rxc1 {[%emt 0:00:04]} 24. Qxc1 {[%emt 0:00:01]} O-O
{[%emt 0:00:02]} 25. Nxe7+ {[%emt 0:00:05]} Qxe7 {[%emt 0:00:02]} 26. Qc6 {
[%emt 0:00:02]} Qc5+ {[%emt 0:00:07]} 27. Qxc5 {[%emt 0:00:02]} Nxc5 {[%emt 0:
00:01]} 28. Re1 {[%emt 0:00:02]} Re8 {[%emt 0:00:16]} 29. Kf2 {[%emt 0:00:02]}
h6 {[%emt 0:00:04]} 30. b4 {[%emt 0:00:02]} Nb3 {[%emt 0:00:07]} 31. Bf4 {
[%emt 0:00:05]} d2 {[%emt 0:00:09]} 32. Rh1 {[%emt 0:00:03]} Rd8 {[%emt 0:00:
04]} 33. Bd1 {[%emt 0:00:01]} Nc1 {[%emt 0:00:02]} 34. h4 {[%emt 0:00:03]} axb4
35. axb4 {[%emt 0:00:01]} Nd3+ {[%emt 0:00:03]} 36. Ke3 {[%emt 0:00:01]} Nxb4 {
[%emt 0:00:01]} 37. h5 {[%emt 0:00:02]} Bf5 {[%emt 0:00:10]} 38. g4 {[%emt 0:
00:01]} Be6 {[%emt 0:00:05]} 39. Rh2 {[%emt 0:00:03]} Nd5+ {[%emt 0:00:06]} 40.
Ke4 {[%emt 0:00:01]} Nc3+ {[%emt 0:00:02]} 41. Ke3 {[%emt 0:00:02]} Nxd1+ {
[%emt 0:00:01]} 0-1